Cogmind - Beta 11 @@@ ROGUE MODE // 2022.03.27 @ 21:11:03 Player: woegarden Result: Destroyed by P-60 Hacker with Shock Rifle Performance ------------- Evolutions (4) 2000 Regions Visited (10) 2000 Robots Destroyed (84) 420 Value Destroyed (2842) 2842 Prototype IDs (27) 540 Alien Tech Used (0) 0 Bonus (1333) 1333 TOTAL SCORE: 9135 Bonus ------- High Alert Combat Kills 333 Entered Garrisons 200 Used RIF Installer 500 Aligned with FarCom 300 Cogmind --------- Core Integrity 0/850 Matter 269/300 Energy 95/100 System Corruption 22% Temperature Cool (0) Movement Core (2400) Ox47 Location -6/Factory Parts ------- > --- POWER (2) -------- (None) > --- PROPULSION (4) --- (None) > --- UTILITY (5) ------ Cargo Storage Unit Skeleton Box > --- WEAPON (4) ------- (None) > --- INVENTORY (30) --- Carbon-fiber Leg VTOL Module Cesium-ion Thruster Improved VTOL Module Cryofiber Web High-capacity Storage Unit Trap Scanner Trap Scanner Improved Signal Interpreter Transmission Jammer Relay Coupler [Hunter] (14) Corruption Screen Improved Datajack Mining Laser Peak State ------------ > --- POWER ------------ Improved Ion Engine Light Deuterium Engine > --- PROPULSION ------- Improved Carbon-fiber Leg Improved Carbon-fiber Leg Improved Carbon-fiber Leg Improved Carbon-fiber Leg > --- UTILITY ---------- Improved Heat Sink Cargo Storage Unit > --- WEAPON ----------- Firepult > --- INVENTORY -------- Light Ion Engine Light Nuclear Core Compact Wheel Compact Wheel Armored Wheel Armored Wheel Improved Heat Sink Improved Heat Sink High-capacity Storage Unit Cargo Storage Unit High-capacity Matter Pod Recoil Stabilizer Kinecellerator ECM Suite Relay Coupler [Hunter] Skeleton Box Latent Energy Streamer Beam Cannon Particle Cannon Heavy Assault Rifle Autogun Gauss Rifle Gauss Rifle Gauss Rifle Gauss Rifle Mining Laser Ripper [Rating: 53] Favorites ----------- Power Ion Engine Engine Ion Engine Power Core Light Nuclear Core Propulsion Wheel Treads Light Treads Leg Improved Carbon-fiber Leg Wheel Wheel Hover Unit Gravmag System Flight Unit Improved VTOL Module Utility Cargo Storage Unit Device Cryofiber Web Storage Cargo Storage Unit Processor Machine Analyzer Weapon Gauss Rifle Energy Gun Small Laser Energy Cannon Firepult Ballistic Gun Gauss Rifle Launcher Proton Missile Launcher Build | -11 -10 -9 -9 -9 -8 -8 -8 -8 -7 -6 ------- Run | Scr Mat Mat Min Exi Min Mat Gar Mat Fac Fac Slots Evolved 8 | . . 2 . . . 2 . . 2 2 Power 1 | . . . . . . 1 . . . . Propulsion 2 | . . 1 . . . 1 . . . . Utility 3 | . . 1 . . . . . . 2 . Weapon 2 | . . . . . . . . . . 2 Parts Attached 103 | . 14 5 2 . . 8 6 49 10 9 Power 11 | . 1 . . . . 1 1 6 . 2 Engine 9 | . 1 . . . . 1 1 4 . 2 Core 2 | . . . . . . . . 2 . . Reactor . | . . . . . . . . . . . Propulsion 56 | . 9 3 1 . . 5 4 25 7 2 Treads 3 | . 2 . . . . . . 1 . . Leg 18 | . 3 1 . . . . . 11 2 1 Wheel 27 | . 4 2 1 . . 5 4 9 2 . Hover 1 | . . . . . . . . . . 1 Flight 7 | . . . . . . . . 4 3 . Utility 16 | . 2 . . . . 1 1 9 3 . Device 7 | . . . . . . . 1 4 2 . Storage 8 | . 2 . . . . 1 . 5 . . Processor 1 | . . . . . . . . . 1 . Hackware . | . . . . . . . . . . . Protection . | . . . . . . . . . . . Artifact . | . . . . . . . . . . . Weapon 20 | . 2 2 1 . . 1 . 9 . 5 Energy Gun 3 | . 1 . 1 . . . . 1 . . Energy Cannon 8 | . . 2 . . . 1 . 3 . 2 Ballistic Gun 8 | . 1 . . . . . . 5 . 2 Ballistic Cannon . | . . . . . . . . . . . Launcher 1 | . . . . . . . . . . 1 Special Weapon . | . . . . . . . . . . . Impact Weapon . | . . . . . . . . . . . Slashing Weapon . | . . . . . . . . . . . Piercing Weapon . | . . . . . . . . . . . Special Melee Weapon . | . . . . . . . . . . . Unidentified Prototypes 2 | . . . . . . . . 2 . . Parts Lost 36 | . 3 2 1 . . . 3 9 2 16 Power 9 | . 1 . . . . . 1 4 . 3 Propulsion 12 | . . 1 1 . . . 2 3 . 5 Utility 3 | . . . . . . . . . 1 2 Weapon 12 | . 2 1 . . . . . 2 1 6 Highest Loss Streak 6 | . 2 2 1 . . . 1 5 1 6 To Critical Strikes 2 | . . . . . . . . . . 2 Average Slot Usage (%) 79 | . 89 72 77 77 77 82 79 83 88 59 Engine 10 | . 13 11 11 11 11 18 17 10 7 4 Core 2 | . . . . . . . . 6 7 . Leg 9 | . 10 . . . . . . 19 19 12 Wheel 20 | . 12 28 33 33 33 36 34 13 5 3 Flight 1 | . . . . . . . . 2 5 . Device 4 | . . . . . . . 6 7 11 9 Storage 10 | . 21 11 11 11 11 18 11 9 7 6 Energy Gun 8 | . 15 11 19 22 22 2 . 2 . . Energy Cannon 3 | . . 8 2 . . 7 9 3 . 5 Ballistic Gun 5 | . 8 2 . . . . . 9 14 12 Naked Turns . | . . . . . . . . . . . Heaviest Build 179 | 14 147 150 150 149 149 174 176 175 166 179 Greatest Support 72 | 20 40 36 30 30 30 58 58 72 51 51 Greatest Overweight (x) 50 | . 7 7 4 4 4 2 4 9 11 50 Average Overweight (x) 3 | . 3 5 4 4 4 2 2 2 3 5 Largest Inventory Capacity 30 | . 30 30 30 30 30 30 30 30 30 30 Average Capacity 28 | . 18 30 30 30 30 30 30 29 30 30 Most Carried 30 | . 10 15 25 30 30 29 28 30 20 19 Average Carried 21 | . 5 12 20 28 30 23 25 24 16 16 Final Capacity 30 | 8 30 30 30 30 30 30 30 30 30 30 Final Carried 30 | 6 10 15 25 30 30 24 25 16 20 14 Class Distribution -------------------- 84% | Hauler-Mutant 9% | Scavenger-Mutant 4% | Mutant Dominant Class ---------------- Mutant | -10/Materials Hauler-Mutant | -9/Materials Hauler-Mutant | -9/Mines Hauler-Mutant | -9/Exiles Hauler-Mutant | -8/Mines Hauler-Mutant | -8/Materials Hauler-Mutant | -8/Garrison Hauler-Mutant | -8/Materials Hauler-Mutant | -7/Factory Hauler-Mutant | -6/Factory Resources | -11 -10 -9 -9 -9 -8 -8 -8 -8 -7 -6 ----------- Run | Scr Mat Mat Min Exi Min Mat Gar Mat Fac Fac Matter Collected 1508 | 200 175 51 114 . . 70 41 535 . 322 Remotely . | . . . . . . . . . . . Salvage Created 3578 | . 312 292 320 . 20 . 890 1405 46 293 Parts 165 | . 16 23 24 . 1 . 28 56 2 15 Haulers Intercepted 3 | . . . . . . . . 3 . . Recyclers Shooed 4 | . . 1 . . . . . 1 . 2 Parts Field Recycled . | . . . . . . . . . . . Retrieved Matter . | . . . . . . . . . . . Parts Self-Destructed . | . . . . . . . . . . . Prevented . | . . . . . . . . . . . Kills | -11 -10 -9 -9 -9 -8 -8 -8 -8 -7 -6 ------- Run | Scr Mat Mat Min Exi Min Mat Gar Mat Fac Fac Combat Hostiles Destroyed 57 | . 6 5 3 . . . 18 20 1 4 Guns 21 | . 6 4 3 . . . . 7 1 . Cannons 11 | . . 1 . . . . 3 3 . 4 AOE 18 | . . . . . . . 13 5 . . Classes Destroyed 15 | . 3 2 3 . . . . 6 1 . Worker 7 | . 1 2 3 . . . . 1 . . Builder 3 | . . . 1 . . . . 2 . . Tunneler 4 | . . . 2 . 1 . . 1 . . Hauler 3 | . . . . . . . . 3 . . Recycler 6 | . . . 3 . . . . 3 . . Mechanic 1 | . . . . . . . . 1 . . Watcher 3 | . 1 . . . . . . 1 . 1 Swarmer 20 | . . 4 3 . . . 10 3 . . Grunt 24 | . 6 . . . . . 8 8 . 2 Brawler 2 | . . . . . . . . 1 . 1 Duelist 1 | . . . . . . . . 1 . . Sentry 6 | . . 1 . . . . . 4 . 1 Hunter 2 | . . . . . . . . 2 . . Programmer 1 | . . . . . . . . . 1 . Heavy 1 | . . . . . . . . 1 . . Best Kill Streak 8 | . 5 4 3 . 1 . 6 8 1 3 Combat Bots Only 6 | . 5 4 3 . . . 6 6 1 3 Max Kills in Single Turn 3 | . 1 1 2 . 1 . 3 3 1 1 Gunslinging . | . . . . . . . . . . . Exploded 3 | . . . . . . . 3 2 . . Melee . | . . . . . . . . . . . Uniques/NPCs Destroyed . | . . . . . . . . . . . Combat | -11 -10 -9 -9 -9 -8 -8 -8 -8 -7 -6 -------- Run | Scr Mat Mat Min Exi Min Mat Gar Mat Fac Fac Damage Taken 5439 | . 785 203 71 . . . 310 1069 346 2655 Core 1416 | . 223 14 13 . . . 74 162 71 859 Absorbed by Shields 148 | . . . . . . . . . 36 112 Core Remaining (%) 69 | 100 10 . . . 93 . . 57 89 . Volleys Fired 188 | . 54 20 24 . 3 . 15 40 8 24 Largest 4 | . 2 2 2 . 2 . 1 2 2 4 Hottest 250 | . 90 108 105 . 105 . 250 250 56 144 Shots Fired 271 | . 65 37 39 . 6 . 15 65 16 28 Gun 213 | . 65 34 39 . 6 . . 49 16 4 Cannon 55 | . . 3 . . . . 15 16 . 21 Launcher 3 | . . . . . . . . . . 3 Special . | . . . . . . . . . . . Kinetic 120 | . 50 14 . . . . . 36 16 4 Thermal 144 | . 11 23 39 . 6 . 15 29 . 21 Explosive . | . . . . . . . . . . . Electromagnetic 7 | . 4 . . . . . . . . 3 Robot Hit Streak 12 | . 9 8 10 . 2 . 6 8 3 12 Robot Miss Streak 7 | . 4 5 5 . 7 . 3 5 3 3 Penetration Max . | . . . . . . . . . . . Secondary Targets 1 | . . . . . . . . 1 . . Max Gunslinging Chain 1 | . . . . . . . . 1 . . Shots Hit Robots 171 | . 45 24 25 . 2 . 7 38 9 21 Core Hits 143 | . 19 12 27 . 1 . 28 44 2 10 Critical Kills . | . . . . . . . . . . . Critical Parts Destroyed . | . . . . . . . . . . . Critical Strikes 1 | . 1 . . . . . . . . . Burn 1 | . 1 . . . . . . . . . Melee Attacks . | . . . . . . . . . . . Impact . | . . . . . . . . . . . Slashing . | . . . . . . . . . . . Piercing . | . . . . . . . . . . . Sneak Attacks . | . . . . . . . . . . . Combat Hostiles . | . . . . . . . . . . . Follow-up Attacks . | . . . . . . . . . . . Damage Inflicted 4947 | . 424 246 360 . 25 . 1165 1959 212 556 Guns 1751 | . 413 226 360 . 25 . . 470 212 45 Cannons 938 | . . 20 . . . . 202 328 . 388 Explosions 2166 | . . . . . . . 963 1093 . 110 Melee . | . . . . . . . . . . . Ramming 92 | . 11 . . . . . . 68 . 13 Kinetic 987 | . 318 69 . . . . . 343 212 45 Thermal 3663 | . 70 177 360 . 25 . 1165 1478 . 388 Explosive 70 | . . . . . . . . 70 . . Electromagnetic 135 | . 25 . . . . . . . . 110 Impact . | . . . . . . . . . . . Slashing . | . . . . . . . . . . . Piercing . | . . . . . . . . . . . Highest Corruption 20 | . . . . . . . . 1 2 20 Average Corruption 3 | . . . . . . . . 1 1 9 Corruption Purged . | . . . . . . . . . . . Corruption Blocked . | . . . . . . . . . . . Effects 23 | . . . . . . . . 9 2 12 Message Errors 7 | . . . . . . . . 3 . 4 Matter Fused 8 | . . . . . . . . 2 1 5 Heat Flow Errors 1 | . . . . . . . . . . 1 Parts Rejected 1 | . . . . . . . . . . 1 Data Loss (minor) 4 | . . . . . . . . 2 1 1 Misfires 1 | . . . . . . . . 1 . . Alerts 1 | . . . . . . . . 1 . . Overload Shots . | . . . . . . . . . . . Overflow Damage 55 | . . . . . . . 15 10 . 30 Projectiles . | . . . . . . . . . . . Explosions 53 | . . . . . . . 15 8 . 30 Melee 2 | . . . . . . . . 2 . . Knockbacks . | . . . . . . . . . . . Impact . | . . . . . . . . . . . Kinetic . | . . . . . . . . . . . Secondary . | . . . . . . . . . . . Self-Inflicted Damage 282 | . 5 . . . . . 156 53 . 68 Shots 21 | . . . . . . . 15 3 . 3 Rammed 6 | . 1 . . . . . . 3 . 2 Targets Rammed 9 | . 1 . . . . . . 4 . 4 Kicked 3 | . . . . . . . . 1 . 2 Crushed . | . . . . . . . . . . . Highest Temperature 594 | . 120 39 121 . 36 . 594 391 . 250 Average Temperature 121 | . 27 15 49 . 21 . 216 164 . 88 Received Heat Transfer 960 | . 450 21 . . . . 45 360 36 48 Effects 14 | . . . . . . . 13 1 . . Shutdowns 4 | . . . . . . . 4 . . . Interference 2 | . . . . . . . 1 1 . . Damage (minor) 5 | . . . . . . . 5 . . . Damage (major) 3 | . . . . . . . 3 . . . Siege Activations . | . . . . . . . . . . . Robots Corrupted . | . . . . . . . . . . . Combat Hostiles . | . . . . . . . . . . . Parts Fried 5 | . 1 . . . . . . 4 . . Impact Corruptions 1 | . . . . . . . . 1 . . Robots Melted 11 | . . . . . . . 5 6 . . Combat Hostiles 7 | . . . . . . . 2 5 . . Parts Melted 51 | . . . . . . . 22 29 . . Heat Transferred 14322 | . 248 387 605 . 40 . 5680 6733 . 629 Parts Sabotaged . | . . . . . . . . . . . Parts Stolen . | . . . . . . . . . . . Parts Stripped . | . . . . . . . . . . . Power Chain Reactions . | . . . . . . . . . . . Missiles Intercepted . | . . . . . . . . . . . Alert | -11 -10 -9 -9 -9 -8 -8 -8 -8 -7 -6 ------- Run | Scr Mat Mat Min Exi Min Mat Gar Mat Fac Fac Peak Influence 860 | . 157 149 147 . 5 1 578 860 311 129 Initial 291 | . . 9 57 . . 1 . 281 291 49 Average 307 | . 46 109 75 . 1 1 340 669 242 70 Maximum Alert Level 3 | . . . . . . . 2 3 1 . Low Security (%) 51 | . 100 100 100 . 100 100 26 . 28 100 Level 1 15 | . . . . . . . 39 9 71 . Level 2 13 | . . . . . . . 33 28 . . Level 3 19 | . . . . . . . . 61 . . Level 4 . | . . . . . . . . . . . Level 5 . | . . . . . . . . . . . High Security . | . . . . . . . . . . . Max Security . | . . . . . . . . . . . Squads Dispatched 7 | . . 1 . . . . . 3 1 2 Investigation 2 | . . 1 . . . . . . . 1 Extermination 2 | . . . . . . . . . 1 1 Reinforcement 2 | . . . . . . . . 2 . . Assault 1 | . . . . . . . . 1 . . Garrison . | . . . . . . . . . . . Intercept . | . . . . . . . . . . . Searches Triggered . | . . . . . . . . . . . Construction Impeded 1 | . . . . . . . . 1 . . Haulers Reinforced . | . . . . . . . . . . . Active Scanning Responses . | . . . . . . . . . . . Cargo Convoy Interrupts . | . . . . . . . . . . . Stealth | -11 -10 -9 -9 -9 -8 -8 -8 -8 -7 -6 --------- Run | Scr Mat Mat Min Exi Min Mat Gar Mat Fac Fac Distress Signals 4 | . 1 . . . . . . 2 . 1 Communications Jammed . | . . . . . . . . . . . Distress Signals . | . . . . . . . . . . . Times Spotted 94 | . 15 7 4 . . . 16 39 4 9 Peak Tracking Total 8 | . 8 4 4 . . . 4 8 3 4 Tactical Retreats 3 | . . . . . . . . 3 . . Traps | -11 -10 -9 -9 -9 -8 -8 -8 -8 -7 -6 ------- Run | Scr Mat Mat Min Exi Min Mat Gar Mat Fac Fac Traps Triggered 4 | . . . . . . . 4 . . . Indirectly . | . . . . . . . . . . . Trap Hack Attempts . | . . . . . . . . . . . Triggered . | . . . . . . . . . . . Disarmed . | . . . . . . . . . . . Reprogrammed . | . . . . . . . . . . . Reused . | . . . . . . . . . . . Traps Extracted . | . . . . . . . . . . . Installed . | . . . . . . . . . . . Triggered . | . . . . . . . . . . . Machines | -11 -10 -9 -9 -9 -8 -8 -8 -8 -7 -6 ---------- Run | Scr Mat Mat Min Exi Min Mat Gar Mat Fac Fac Machines Disabled 8 | . . . . . . . 4 4 . . Max in Single Turn 2 | . . . . . . . 2 1 . . Garrison Access 1 | . . . . . . . . 1 . . Garrison Relay 2 | . . . . . . . 2 . . . Phase Generator 1 | . . . . . . . 1 . . . Machines Sabotaged . | . . . . . . . . . . . Garrisons Compromised . | . . . . . . . . . . . Overloaded Fab Kills . | . . . . . . . . . . . Hacking | -11 -10 -9 -9 -9 -8 -8 -8 -8 -7 -6 --------- Run | Scr Mat Mat Min Exi Min Mat Gar Mat Fac Fac Machines Accessed 9 | . 2 1 . 1 . 1 . 2 1 1 Terminals 3 | . 2 . . . . . . 1 . . Fabricators . | . . . . . . . . . . . Repair Stations 1 | . . . . . . . . . . 1 Recycling Units 1 | . . . . . . . . . 1 . Scanalyzers 2 | . . 1 . . . . . 1 . . Garrison Access 1 | . . . . . . 1 . . . . Total Hacks 29 | . 9 3 . 1 . 1 . 12 1 2 Successful 19 | . 4 2 . 1 . 1 . 10 1 . Failed 10 | . 5 1 . . . . . 2 . 2 Catastrophic 3 | . 1 . . . . . . 2 . . Database Lockouts . | . . . . . . . . . . . Manual 8 | . 5 . . 1 . . . 2 . . Terminals 11 | . 9 . . . . . . 2 . . Fabricators . | . . . . . . . . . . . Repair Stations 2 | . . . . . . . . . . 2 Recycling Units 1 | . . . . . . . . . 1 . Scanalyzers 13 | . . 3 . . . . . 10 . . Garrison Access 1 | . . . . . . 1 . . . . Terminal Hacks 5 | . 4 . . 1 . . . . . . Part Schematic 2 | . 2 . . . . . . . . . Prototype ID Bank 1 | . 1 . . . . . . . . . Transport Status 1 | . 1 . . . . . . . . . EX-Prototype ID Bank 1 | . . . . 1 . . . . . . Fabricator Hacks . | . . . . . . . . . . . Repair Station Hacks . | . . . . . . . . . . . Recycling Unit Hacks 1 | . . . . . . . . . 1 . Report Inventory 1 | . . . . . . . . . 1 . Scanalyzer 12 | . . 2 . . . . . 10 . . Insert Component 7 | . . 1 . . . . . 6 . . Analyze 5 | . . 1 . . . . . 4 . . Garrison Access Hacks 1 | . . . . . . 1 . . . . Unlock Access 1 | . . . . . . 1 . . . . Unauthorized Hacks . | . . . . . . . . . . . Terminals . | . . . . . . . . . . . Fabricators . | . . . . . . . . . . . Repair Stations . | . . . . . . . . . . . Recycling Units . | . . . . . . . . . . . Scanalyzers . | . . . . . . . . . . . Garrison Access . | . . . . . . . . . . . Data Cores Recovered . | . . . . . . . . . . . Used . | . . . . . . . . . . . Hacking Detections 6 | . 2 1 . . . . . 1 1 1 Full Trace Events 4 | . 1 1 . . . . . 1 . 1 Feedback Events 1 | . . . . . . . . . . 1 Corruption 1 | . . . . . . . . . . 1 Feedback Blocked . | . . . . . . . . . . . Robot Schematics Acquired . | . . . . . . . . . . . Robots Built . | . . . . . . . . . . . Authchips . | . . . . . . . . . . . Time . | . . . . . . . . . . . Total Robot Build Rating . | . . . . . . . . . . . Part Schematics Acquired 6 | . 2 1 . . . . . 3 . . Parts Built . | . . . . . . . . . . . Authchips . | . . . . . . . . . . . Time . | . . . . . . . . . . . Total Part Build Rating . | . . . . . . . . . . . Parts Repaired . | . . . . . . . . . . . Time . | . . . . . . . . . . . Parts Recycled . | . . . . . . . . . . . Recycled Matter . | . . . . . . . . . . . Retrieved Matter . | . . . . . . . . . . . Retrieved Components . | . . . . . . . . . . . Parts Scanalyzed 5 | . . 1 . . . . . 4 . . Part Schematics Acquired 4 | . . 1 . . . . . 3 . . Parts Damaged . | . . . . . . . . . . . Bothacking | -11 -10 -9 -9 -9 -8 -8 -8 -8 -7 -6 ------------ Run | Scr Mat Mat Min Exi Min Mat Gar Mat Fac Fac Used RIF Installer 1 | . . . . . . . 1 . . . Robots Hacked . | . . . . . . . . . . . Non-combat . | . . . . . . . . . . . Combat . | . . . . . . . . . . . Robot Hacks Applied . | . . . . . . . . . . . Relay Couplers Released 10 | . . . . . . . 8 2 . . Machine Destruction 10 | . . . . . . . 8 2 . . Fabnet Peak Effective % . | . . . . . . . . . . . Robots Rewired 3 | . . . . . . . . . . 3 Allies Hacked 1 | . . . . . . . . . . 1 Hacks Repelled . | . . . . . . . . . . . Allies | -11 -10 -9 -9 -9 -8 -8 -8 -8 -7 -6 -------- Run | Scr Mat Mat Min Exi Min Mat Gar Mat Fac Fac Total Allies 3 | . . . . . . . . . . 3 Largest Group 2 | . . . . . . . . . . 2 Highest-Rated Group 71 | . . . . . . . . . . 71 Highest-Rated Ally 37 | . . . . . . . . . . 37 Total Orders . | . . . . . . . . . . . Ally Attacks 1 | . . . . . . . . . . 1 Total Damage 27 | . . . . . . . . . . 27 Kills . | . . . . . . . . . . . Allies Corrupted . | . . . . . . . . . . . Allies Melted . | . . . . . . . . . . . Intel | -11 -10 -9 -9 -9 -8 -8 -8 -8 -7 -6 ------- Run | Scr Mat Mat Min Exi Min Mat Gar Mat Fac Fac Robot Analysis Total . | . . . . . . . . . . . Derelict Logs Recovered . | . . . . . . . . . . . Drone Launches . | . . . . . . . . . . . Drone Recoveries . | . . . . . . . . . . . Exploration | -11 -10 -9 -9 -9 -8 -8 -8 -8 -7 -6 ------------- Run | Scr Mat Mat Min Exi Min Mat Gar Mat Fac Fac Turns Passed 6073 | . 581 317 700 706 308 70 623 1727 556 485 Spaces Moved 2920 | 1 241 156 443 501 214 42 402 712 133 75 Core 3 | . . . . . . . . . . 3 Treads 10 | . 10 . . . . . . . . . Legs 589 | 1 114 . . . . . . 288 119 67 Wheels 2272 | . 117 156 443 501 214 42 402 397 . . Hover 5 | . . . . . . . . . . 5 Flight 41 | . . . . . . . . 27 14 . Fastest Speed 120 | 120 120 140 140 140 140 125 125 125 330 330 Average Speed 179 | 120 179 158 140 140 140 125 133 209 387 475 Slowest Speed 2550 | 120 190 185 140 140 140 125 153 750 875 2550 Overloaded Moves . | . . . . . . . . . . . Propulsion Burnouts . | . . . . . . . . . . . Robots Hopped . | . . . . . . . . . . . Cave-ins Triggered . | . . . . . . . . . . . Exploration Rate (%) 33 | 2 44 13 58 78 61 4 58 49 3 3 Regions Visited 10 Branch Regions 3 Pre-discovered Areas . | . . . . . . . . . . . Known Exits Taken 1 | . . . . . . 1 . . . . Unknown Exits Taken 8 | 1 1 1 1 1 1 . . 1 1 . Scrap Searched 2 | . . . 2 . . . . . . . Spaces Dug . | . . . . . . . . . . . Terrain Destroyed 155 | . . . . . . . 77 78 . . Melee . | . . . . . . . . . . . Projectile 3 | . . . . . . . . 3 . . AOE 152 | . . . . . . . 77 75 . . Terrain Rammed . | . . . . . . . . . . . Walls Destroyed . | . . . . . . . . . . . Machines Disabled . | . . . . . . . . . . . Actions | -11 -10 -9 -9 -9 -8 -8 -8 -8 -7 -6 --------- Run | Scr Mat Mat Min Exi Min Mat Gar Mat Fac Fac Total 3464 | . 332 192 486 506 216 61 475 889 156 151 Wait 50 | . 5 . . . . . 11 13 . 21 Move 2911 | . 240 155 442 500 213 42 401 711 132 75 Hop . | . . . . . . . . . . . Pick Up 83 | . 10 9 14 5 . 3 7 29 6 . Fast Attach 21 | . 3 1 . . . . . 15 1 1 Attach 36 | . 2 3 2 . . 4 3 13 2 7 Detach 11 | . 1 1 1 . . 2 . 6 . . Swap 46 | . 9 1 . . . 4 3 21 7 1 Drop 59 | . 7 2 3 1 . 6 3 37 . . Fire 188 | . 54 20 24 . 3 . 15 40 8 24 Melee . | . . . . . . . . . . . Ram 6 | . 1 . . . . . . 3 . 2 Kick 3 | . . . . . . . . 1 . 2 Crush . | . . . . . . . . . . . Escape Stasis 32 | . . . . . . . 32 . . . Rewire 18 | . . . . . . . . . . 18 Trap . | . . . . . . . . . . . Miscellaneous . | . . . . . . . . . . . Route ------- -11/Scrapyard -10/Materials -9/Materials -9/Mines -9/Exiles -8/Mines -8/Materials -8/Garrison -8/Materials -7/Factory -6/Factory History --------- Turn | Location | Event 1 | -11/Scrapyard | Discovered new exit (range 0) 1 | -11/Scrapyard | Entered Materials 227 | -10/Materials | Core integrity fell below 50% 292 | -10/Materials | Core integrity fell below 20% 575 | -10/Materials | Discovered new exit (range 5) 582 | -10/Materials | Entered another Materials area 582 | -9/Materials | Evolved 2 slots: Propulsion x1, Utility x1 603 | -9/Materials | Build established: Hauler-Mutant 788 | -9/Materials | Discovered new exit (range 8) 899 | -9/Materials | Entered Mines 914 | -9/Mines | Met a Derelict bent on vengeance 1103 | -9/Mines | Deemed a non-threat by the Exiles lab entrance 1235 | -9/Mines | A weapon hastily lodged in a ceiling crevice suddenly fell to the ground 1594 | -9/Mines | Discovered new exit (range 5) 1599 | -9/Mines | Entered Exiles 1637 | -9/Exiles | Met 8R-AWN 1660 | -9/Exiles | Met EX-HEX 1709 | -9/Exiles | Met EX-BIN 1724 | -9/Exiles | Aligned with FarCom system 1725 | -9/Exiles | Given EX-Vault access code 1772 | -9/Exiles | Opened EX-Vault 1783 | -9/Exiles | Found Skeleton Box 1787 | -9/Exiles | Found Firepult 1790 | -9/Exiles | Found Latent Energy Streamer 1824 | -9/Exiles | Warned to stay clear of 0b10 Research branches 1861 | -9/Exiles | Met EX-DEC 1930 | -9/Exiles | Visited The Gauntlet 2288 | -9/Exiles | Discovered new exit (range 14) 2305 | -9/Exiles | Stole three prototypes: Skeleton Box, Latent Energy Streamer, Firepult 2305 | -9/Exiles | Entered Mines 2444 | -8/Mines | Discovered new exit (range 14) 2613 | -8/Mines | Entered Materials 2613 | -8/Materials | Evolved 2 slots: Power x1, Propulsion x1 2683 | -8/Materials | Identified exit to Garrison 2683 | -8/Materials | Entered Garrison 2690 | -8/Garrison | Installed Relay Interface Framework 2720 | -8/Garrison | Triggered checkpoint 2768 | -8/Garrison | Garrison Relay disabled 2824 | -8/Garrison | Triggered checkpoint 2846 | -8/Garrison | Triggered checkpoint 2861 | -8/Garrison | Triggered checkpoint 2940 | -8/Garrison | Phase Generator disabled 3224 | -8/Garrison | Garrison Relay disabled 3264 | -8/Garrison | Discovered new exit (range 15) 3306 | -8/Garrison | Entered Materials 3920 | -8/Materials | Lost 5 parts (2p2n1w) 4535 | -8/Materials | Build established: Scavenger-Mutant 4934 | -8/Materials | Build established: Hauler-Mutant 4987 | -8/Materials | Discovered new exit (range 15) 5033 | -8/Materials | Entered Factory 5033 | -7/Factory | Evolved 2 slots: Utility x2 5035 | -7/Factory | FarCom data flow suspended 5395 | -7/Factory | Discovered new exit (range 15) 5589 | -7/Factory | Entered another Factory area 5589 | -6/Factory | Evolved 2 slots: Weapon x2 5943 | -6/Factory | Lost 6 parts (3n3w) 5972 | -6/Factory | Core integrity fell below 50% 5982 | -6/Factory | System corruption reached 10% 6009 | -6/Factory | Lost 5 parts (1p2n2w) 6033 | -6/Factory | Core integrity fell below 20% 6074 | -6/Factory | Destroyed by P-60 Hacker with Shock Rifle Last Messages --------------- 05964_ R-10 Processor collects Flak Gun. 05970_ R-10 Processor collects Lgt. Ion Engine. 05971_ Penetrated by Slug. 05972_ PHP0&8ZQFOF,WAUGN3MPJF%WBY 05973_ R-10 Processor collects Wheel. 05978_ Latent Energy Streamer destroyed. 05987_ P-60 Hacker hacks Angel 5a, rebooting. 05989_ Slug penetrates Angel 5a. 05989_ Angel 5a destroyed. 05990_ R-10 Processor collects Com. Wheel. 05995_ R-10 Processor collects Unknown Storage. 06010_ ALERT: Cargo convoy en route, clear transfer corridor. 06027_ System corrupted: Matter fused (-6). 06046_ Door malfunctions. 06049_ T %:D:|ZPLE